bitfinex/quotes_ETHUSD_20240731
["timestamp","ask_amount","ask_price","bid_price","bid_amount"]
[1722431104080,3.00598,3326.7,3326.4,1.506]
[1722431104081,3.00608,3326.6,3326.4,1.506]
[1722431104292,6.00608,3326.6,3326.4,1.506]
[1722431104946,8.20338568,3326.6,3326.4,1.506]
[1722431105350,5.20338568,3326.6,3326.4,1.506]
[1722431106108,6.01232,3326.5,3326.4,1.506]
[1722431106276,6.87308865,3326.5,3326.4,1.506]
[1722431106868,9.36358865,3326.5,3326.4,1.506]
[1722431107179,15.51659811,3326.5,3326.4,1.506]
[1722431107392,18.51659811,3326.5,3326.4,1.506]
[1722431107784,15.91974865,3326.5,3326.4,1.506]
[1722431108163,18.5166679,3326.5,3326.4,1.506]
[1722431108479,15.91974865,3326.5,3326.4,1.506]
[1722431108809,12.91358865,3326.5,3326.4,1.506]
[1722431108983,15.51062477,3326.5,3326.4,1.506]
[1722431109917,12.91358865,3326.5,3326.4,1.506]
[1722431110324,15.51084944,3326.5,3326.4,1.506]
[1722431111099,15.51103934,3326.5,3326.4,1.506]
[1722431111301,12.91358865,3326.5,3326.4,1.506]
[1722431111702,15.51147995,3326.5,3326.4,1.506]
[1722431112102,12.91358865,3326.5,3326.4,1.506]
[1722431113806,15.91974865,3326.5,3326.4,1.506]
[1722431114003,19.04748287,3326.5,3326.4,1.506]
[1722431114707,15.91974865,3326.5,3326.4,1.506]
[1722431116045,22.05364287,3326.5,3326.4,0.03258286]
[1722431116354,18.92590865,3326.5,3326.4,0.03258286]
[1722431116507,18.92590865,3326.5,3326.4,0.23258286]
[1722431116814,15.91974865,3326.5,3326.4,0.23258286]
[1722431117425,6.87308865,3326.5,3326.4,0.23258286]
[1722431117630,8.61378092,3326.5,3326.4,0.23258286]
[1722431117959,6.01232,3326.5,3326.4,0.23258286]
[1722431118131,8.61378092,3326.5,3326.4,0.23258286]
[1722431118454,6.01232,3326.5,3326.4,0.23258286]
[1722431118630,8.61378092,3326.5,3326.4,0.23258286]
[1722431118831,9.56232,3326.5,3326.4,0.23258286]
[1722431119025,12.1642116,3326.5,3326.4,0.23258286]
[1722431119563,9.56232,3326.5,3326.4,0.23258286]
[1722431119744,9.56232,3326.5,3326.4,0.2]
[1722431119745,3.00616,3326.5,3326.4,0.2]
[1722431120135,5.6080143,3326.5,3326.4,0.2]
[1722431120451,5.6080143,3326.5,3326.4,0.4]
[1722431121633,8.61430385,3326.5,3326.4,0.4]
[1722431121834,9.47566735,3326.5,3326.4,0.4]
[1722431122053,3.86759039,3326.5,3326.4,0.4]
[1722431122637,6.46948845,3326.5,3326.4,0.4]
[1722431123043,2.60189806,3326.5,3326.4,0.4]
[1722431123244,2.60222207,3326.5,3326.4,0.4]
[1722431123438,3.0,3326.9,3326.4,0.4]
[1722431123439,3.12152449,3326.9,3326.4,0.4]
[1722431123664,3.12152449,3326.9,3326.4,0.44200553]
[1722431123665,2.2034843,3326.6,3326.4,0.44200553]
[1722431124067,2.2034843,3326.7,3326.4,0.44200553]
[1722431124463,3.0058,3326.9,3326.4,0.44200553]
[1722431124464,2.2034843,3326.6,3326.4,0.44200553]
[1722431124806,2.2034843,3326.6,3326.4,0.64200553]
[1722431124965,2.2034843,3326.7,3326.4,0.64200553]
[1722431125160,5.2095143,3326.7,3326.4,0.64200553]
[1722431125362,2.2034843,3326.5,3326.4,0.6]
[1722431125680,3.00576,3327.0,3326.4,0.6]
[1722431125681,5.60884583,3326.7,3326.4,0.6]
[1722431125859,3.00608,3326.6,3326.4,0.6]
[1722431126296,2.60286583,3326.7,3326.4,0.6]
[1722431126498,5.60877583,3326.8,3326.4,0.6]
[1722431126679,10.53152449,3327.1,3326.4,2.9049]
[1722431126878,2.20433252,3326.5,3326.4,2.9049]
[1722431128701,2.20433252,3326.5,3326.4,3.1049]
[1722431129313,2.20433252,3326.5,3326.4,3.75774004]
[1722431129510,2.20433252,3326.6,3326.4,3.75774004]
[1722431129667,2.20433252,3326.7,3326.4,3.14662204]
[1722431129867,10.41563,3327.1,3326.4,3.14662204]
[1722431130112,2.20394405,3326.7,3326.4,3.14662204]
[1722431131914,2.20394405,3326.7,3326.4,3.25915048]
[1722431133015,2.20394405,3326.7,3326.4,6.46539048]
[1722431133398,2.20400251,3326.7,3326.5,3.00615]
[1722431133772,2.20400251,3326.7,3326.5,0.14898889]
[1722431134414,2.20400251,3326.7,3326.5,3.15508889]
[1722431135217,2.20400251,3326.7,3326.5,0.14898889]
[1722431136217,2.20400251,3326.7,3326.5,3.15514889]
[1722431136566,2.20411114,3326.7,3326.5,3.15514889]
[1722431138110,2.20411114,3326.7,3326.5,0.14898889]
[1722431138412,2.20411114,3326.7,3326.5,3.15513889]
[1722431139520,2.20411114,3326.7,3326.5,3.15509889]
[1722431139820,2.20373547,3326.7,3326.5,3.15509889]
[1722431140114,2.20373547,3326.7,3326.6,3.00607]
[1722431140317,2.60316253,3327.0,3326.5,5.32162678]
[1722431140318,2.20373547,3327.0,3326.7,3.00598]
[1722431140484,2.20373547,3327.2,3326.8,3.00584]
[1722431140684,2.20373547,3327.3,3326.8,3.15452735]
[1722431140904,2.20373547,3327.2,3326.8,3.15452735]
[1722431141201,2.20373547,3327.2,3326.8,3.21462319]
[1722431141404,2.20373547,3327.3,3326.9,1.54136232]
[1722431141613,2.20373547,3327.3,3326.9,4.11474]
[1722431141921,2.20373547,3327.4,3327.0,0.14868735]
[1722431142287,2.20373547,3327.4,3326.9,4.11474]
[1722431142512,2.20373547,3327.4,3327.1,0.14868735]
[1722431142712,2.20373547,3327.4,3327.0,3.00568]
[1722431143010,13.01768189,3327.7,3327.0,5.34938]
[1722431143243,2.20328241,3327.4,3327.0,5.34938]
[1722431143374,2.20328241,3327.4,3327.1,0.14868735]
[1722431144315,2.20328241,3327.6,3327.1,0.14868735]
[1722431144532,3.70224165,3327.6,3327.1,0.14868735]
[1722431144732,3.70224165,3327.6,3327.1,3.15429735]
[1722431144931,3.70224165,3327.6,3327.1,0.14868735]
[1722431146304,3.7011232,3327.6,3327.1,0.14868735]
[1722431146911,2.20216396,3327.5,3327.1,0.14868735]
[1722431147125,2.57227628,3327.5,3327.1,0.14868735]
[1722431147357,0.37011232,3327.5,3327.1,0.14868735]
[1722431147741,2.57227628,3327.5,3326.9,1.109]
[1722431147921,0.37011232,3327.5,3327.2,0.14868735]
[1722431148121,0.37011232,3327.5,3326.9,1.109]
[1722431148456,5.20734396,3327.6,3326.9,1.109]
[1722431148613,5.20734396,3327.6,3327.0,0.14847668]
[1722431148813,3.00526,3327.5,3327.0,0.14847668]
[1722431149013,3.00526,3327.5,3326.9,1.109]
[1722431149723,3.00526,3327.5,3327.0,0.14847668]
[1722431150129,3.00526,3327.5,3326.9,1.109]
[1722431150341,3.00526,3327.5,3327.1,0.14847668]
[1722431150521,3.00526,3327.5,3326.9,1.109]
[1722431150522,3.82651955,3327.5,3326.9,1.109]
[1722431150724,3.82651955,3327.5,3327.2,0.14847668]
[1722431150955,3.82651955,3327.5,3326.9,1.109]
[1722431150956,0.82125955,3327.5,3326.9,1.109]
[1722431151122,0.82125955,3327.5,3327.3,0.14847668]
[1722431151322,0.30235151,3327.4,3326.7,3.3963]
[1722431151527,3.00525,3327.5,3327.4,0.14847668]
[1722431151724,3.4803,3327.8,3326.7,6.40227]
[1722431151725,3.00535,3327.4,3326.7,6.40227]
[1722431152219,5.27663,3327.2,3326.8,0.14847668]
[1722431152419,5.27663,3327.2,3326.4,3.3479]
[1722431152626,3.0058,3326.9,3326.4,1.0]
[1722431152811,3.0058,3326.9,3326.5,0.14847668]
[1722431154137,2.20102152,3327.0,3326.5,0.14847668]
[1722431154356,5.42698367,3326.9,3326.5,0.14847668]
[1722431154581,3.22596215,3326.9,3326.5,0.14847668]
[1722431154856,5.42698367,3326.9,3326.5,0.14847668]
[1722431155365,2.42112367,3326.9,3326.5,0.14847668]
[1722431155518,5.38667,3326.6,3326.5,0.14847668]
[1722431155718,7.58769152,3326.6,3326.5,0.14847668]
[1722431155938,5.38667,3326.6,3326.5,0.14847668]
[1722431156261,6.336835,3326.6,3326.5,0.14847668]
[1722431156458,8.53817625,3326.6,3326.5,0.14847668]
[1722431156826,6.336835,3326.6,3326.5,0.14847668]
[1722431157616,5.20732125,3326.7,3326.5,0.14847668]
[1722431157818,2.20134125,3326.8,3326.5,0.14847668]
[1722431158053,2.20134125,3326.9,3326.5,0.14847668]
[1722431158255,5.20722125,3326.9,3326.5,0.14847668]
[1722431158667,2.20134125,3326.8,3326.5,0.14847668]
[1722431158873,5.20723125,3326.8,3326.5,0.14847668]
[1722431159232,0.52072313,3326.8,3326.5,0.14847668]
[1722431159419,2.20153128,3326.8,3326.6,0.14357238]
[1722431159962,2.20153128,3326.8,3326.4,1.0]
[1722431160820,2.20153128,3326.9,3326.5,0.14366683]
[1722431161323,12.28745883,3327.2,3326.6,1.109]
[1722431161324,2.20153128,3327.0,3326.6,1.109]
[1722431161724,2.20153128,3327.0,3326.7,0.14366319]
[1722431162324,6.73644216,3327.1,3326.7,0.14366319]
[1722431162520,4.53491088,3327.1,3326.7,0.14366319]
[1722431162720,2.20338748,3327.0,3326.7,0.14366319]
[1722431163318,4.08395587,3327.0,3326.7,0.14366319]
[1722431163523,2.20399055,3326.8,3326.7,0.14366319]
[1722431164277,2.20399055,3326.9,3326.7,0.14366319]
[1722431164426,2.20399055,3326.8,3326.7,0.14366319]
[1722431164619,2.20399055,3326.9,3326.7,0.14366319]
[1722431164822,2.20399055,3326.9,3326.4,1.109]
[1722431165018,2.20399055,3326.9,3326.5,0.14366319]
[1722431165266,2.20399055,3326.8,3326.5,0.14366319]
[1722431165931,3.00566,3327.1,3326.5,0.14366319]
[1722431166121,2.20389767,3326.8,3326.5,0.14366319]
[1722431166718,2.20389767,3326.7,3326.5,0.14366319]
[1722431167536,2.20389767,3326.6,3326.5,0.14366319]
[1722431168570,3.00589,3326.8,3326.2,1.109]
[1722431168873,2.20440714,3326.6,3326.2,1.109]
[1722431169168,2.20456161,3326.5,3326.4,1.109]
[1722431169340,2.20456161,3326.6,3326.4,1.109]
[1722431169678,2.20456161,3326.5,3326.2,4.11543]
[1722431169970,2.20456161,3326.6,3326.2,7.12179]
[1722431170329,2.20456161,3326.6,3326.4,1.109]
[1722431170530,2.20456161,3326.7,3326.4,1.109]
[1722431171040,2.20456161,3326.7,3326.4,4.11522]
[1722431171437,2.20456161,3326.7,3326.6,4.11507]
[1722431171636,3.12152449,3327.3,3326.6,1.109]
[1722431171637,2.20456161,3326.8,3326.6,1.109]
[1722431171842,2.20456161,3326.8,3326.5,5.29886]
[1722431172037,2.20456161,3326.7,3326.4,1.109]
[1722431172471,2.2047892,3326.7,3326.4,1.109]
[1722431174371,2.2047892,3326.7,3326.5,0.14349607]
[1722431175154,2.2047892,3326.7,3326.5,3.14965607]
[1722431175561,2.2047892,3326.7,3326.5,0.14349607]
[1722431176592,2.2047892,3326.7,3326.5,3.14964607]
[1722431176894,2.2047892,3326.8,3326.6,6.40097]
[1722431177203,2.2047892,3326.9,3326.7,0.14345975]
[1722431177374,2.2047892,3326.8,3326.7,0.14345975]
[1722431177701,2.2047892,3326.8,3326.4,4.11517]
[1722431177886,2.2047892,3326.8,3326.5,3.14960975]
[1722431178428,2.2047892,3326.9,3326.5,3.14960975]
[1722431178913,3.0056,3327.2,3326.5,3.14960975]
[1722431179056,2.20613881,3326.8,3326.5,3.14960975]
[1722431179401,2.20613881,3326.8,3326.5,3.14956975]
[1722431179564,2.20613881,3326.8,3326.5,4.18138205]
[1722431179760,2.20613881,3327.0,3326.6,4.11504]
[1722431180182,2.20613881,3326.9,3326.7,0.14345612]
[1722431180389,2.20613881,3326.8,3326.6,1.109]
[1722431180588,2.20613881,3326.9,3326.8,0.14345612]
[1722431181198,2.20613881,3326.9,3326.6,1.109]
[1722431181366,2.20613881,3326.9,3326.8,0.14345612]
[1722431181568,2.20613881,3326.9,3326.6,1.109]
[1722431181755,2.20613881,3326.9,3326.8,0.14345612]
[1722431181963,2.20613881,3326.9,3326.6,1.109]
[1722431182186,2.20650178,3326.9,3326.8,0.14345612]
[1722431182400,3.0055,3327.3,3326.6,1.109]
[1722431182561,2.20644198,3327.0,3326.8,0.14345612]
[1722431182895,2.20644198,3327.0,3326.9,0.14345612]
[1722431183099,2.20644198,3327.0,3326.6,4.1751752]
[1722431183305,2.20644198,3327.0,3326.7,0.14345612]
[1722431183660,2.20644198,3326.9,3326.7,0.14345612]
[1722431184310,2.20644198,3327.0,3326.7,3.57521773]
[1722431184604,2.20644198,3327.1,3326.8,1.109]
[1722431184974,2.20644198,3327.1,3326.9,0.14333263]
[1722431185159,2.20644198,3327.1,3326.6,4.11506]
[1722431185366,2.20644198,3327.1,3327.0,0.14333263]
[1722431185594,3.00543,3327.3,3326.6,4.11506]
[1722431185806,3.00543,3327.3,3327.0,0.14333263]
[1722431185807,2.20673414,3327.1,3327.0,0.14333263]
[1722431186276,2.20673414,3327.1,3326.6,4.11506]
[1722431186474,2.20673414,3327.1,3326.7,0.14333263]
[1722431187003,2.20673414,3327.1,3326.7,3.14926263]
[1722431188003,2.20673414,3327.1,3326.7,0.14333263]
[1722431188365,2.20673414,3327.0,3326.5,4.11511]
[1722431188591,2.20673414,3327.0,3326.8,0.14328541]
[1722431188822,2.20673414,3327.0,3326.6,3.00606]
[1722431189132,2.20731848,3327.0,3326.6,3.00606]
[1722431189329,2.20731848,3327.0,3326.7,0.14329268]
[1722431189798,4.56491848,3326.9,3326.7,0.14329268]
[1722431190005,2.20731848,3326.8,3326.5,1.109]
[1722431190209,2.20731848,3326.7,3326.5,1.109]
[1722431190393,2.3576,3326.9,3326.5,1.109]
[1722431190394,2.20731848,3326.8,3326.5,1.109]
[1722431191132,2.20731848,3326.8,3326.4,3.00622]
[1722431191429,5.21326848,3326.8,3326.0,5.35]
[1722431191602,2.20731848,3326.5,3325.9,1.109]
[1722431191806,6.4813318,3326.8,3325.9,1.109]
[1722431191807,2.20731848,3326.3,3325.9,1.109]
[1722431192015,2.20731848,3326.2,3325.8,3.00674]
[1722431192237,2.4171,3326.4,3325.8,1.939287]
[1722431192415,2.20750666,3326.1,3325.8,1.109]
[1722431192794,2.20750666,3326.0,3325.8,1.109]
[1722431193546,2.20750666,3326.2,3325.8,1.109]
[1722431193937,2.20750666,3326.2,3325.8,4.11577]
[1722431194267,2.20750666,3326.3,3326.0,4.11556]
[1722431194416,2.20750666,3326.5,3326.2,1.109]
[1722431195253,2.20750666,3326.4,3326.2,1.109]
[1722431195597,2.20780945,3326.4,3326.2,1.109]
[1722431196239,2.20780945,3326.4,3325.6,3.00693]
[1722431196240,2.20780945,3326.4,3326.0,1.109]
[1722431196441,3.00617,3326.5,3326.0,1.109]
[1722431196442,2.20811673,3326.2,3326.0,1.109]
[1722431197419,2.20811673,3326.1,3326.0,1.109]
[1722431198139,2.20811673,3326.1,3325.9,1.109]
[1722431198337,2.20811673,3326.2,3325.9,1.109]
[1722431198748,3.00619,3326.5,3325.9,1.109]
[1722431198921,2.20913877,3326.1,3325.9,1.109]
[1722431199852,2.20913877,3326.0,3325.9,1.109]
[1722431200054,2.20913877,3326.0,3325.7,1.109]
[1722431204406,4.57513877,3326.1,3325.8,0.13882355]
[1722431205175,2.20913877,3326.0,3325.8,0.13882355]
[1722431205461,2.20816741,3326.0,3325.8,0.13882355]
[1722431205694,2.20816741,3326.0,3325.5,1.109]
[1722431205861,2.20816741,3325.9,3325.6,0.13882355]
[1722431206361,0.75806974,3325.9,3325.2,8.389]
[1722431206595,2.20755739,3325.7,3325.4,1.109]
[1722431206982,2.20755739,3325.8,3325.4,1.109]
[1722431207334,2.20755739,3325.9,3325.6,1.109]
[1722431207603,2.20755739,3325.9,3325.8,1.109]
[1722431207812,2.20755739,3326.0,3325.8,1.109]
[1722431208105,2.20755739,3326.0,3325.8,1.24796525]
[1722431208633,2.20675383,3326.0,3325.8,1.109]
[1722431208760,2.20675383,3326.0,3325.6,1.109]
[1722431208956,2.20675383,3326.0,3325.7,0.13896525]
[1722431209177,2.20675383,3326.0,3325.6,1.109]
[1722431209398,2.20675383,3326.0,3325.8,0.13896525]
[1722431209559,2.20675383,3326.0,3325.6,1.109]
[1722431209921,2.20675383,3326.0,3325.8,0.2]
[1722431210274,2.20675383,3326.0,3325.9,0.13896525]
[1722431211672,3.00649,3326.2,3325.9,0.13896525]
[1722431211879,2.20607613,3326.0,3325.9,0.13896525]
[1722431212089,3.00661,3326.0,3325.9,0.13896525]
[1722431212423,5.36681,3326.0,3325.8,0.2]
[1722431212700,2.3602,3326.0,3325.8,0.2]
[1722431212875,2.3602,3326.0,3325.9,0.13917236]
[1722431213198,4.56627613,3326.0,3325.9,0.13917236]
[1722431213594,5.36681,3326.0,3325.9,0.13917236]
[1722431213768,6.50870101,3326.0,3325.9,0.13917236]
[1722431213966,6.50870101,3326.0,3325.8,0.4]
[1722431214170,3.50209101,3326.0,3325.9,0.13917962]
[1722431217897,2.3602,3326.0,3325.9,0.13917962]
[1722431220614,2.3602,3326.0,3325.8,0.6]
[1722431220975,4.56578472,3326.0,3325.9,0.13925956]
[1722431221519,2.3602,3326.0,3325.9,0.13925956]
[1722431225226,2.20422882,3326.1,3325.9,0.13925956]
[1722431225386,2.20422882,3326.4,3326.0,0.06013093]
[1722431225589,2.20422882,3326.7,3326.3,3.00628]
[1722431225919,2.20422882,3326.8,3326.4,0.13926319]
[1722431226110,2.20422882,3326.8,3326.0,1.109]
[1722431226111,5.9756917,3326.8,3326.0,1.109]
[1722431226437,2.2566,3326.4,3326.1,0.13926319]
[1722431226587,4.46082882,3326.4,3326.1,0.13926319]
[1722431226787,4.46082882,3326.4,3325.8,1.0]
[1722431227032,2.20422882,3326.3,3326.2,0.13926319]
[1722431227233,2.20422882,3326.3,3325.8,5.11579]
[1722431227431,2.20422882,3326.3,3326.2,0.13926319]
[1722431227721,4.46082882,3326.4,3326.2,0.13926319]
[1722431228032,2.2050823,3326.4,3326.0,1.109]
[1722431228332,2.2050823,3326.5,3326.1,0.411563]
[1722431228636,2.2050823,3326.4,3326.2,0.13926319]
[1722431228926,2.2050823,3326.5,3326.0,1.109]
[1722431229083,2.2050823,3326.5,3326.1,0.13926319]
[1722431230500,2.2050823,3326.4,3326.1,0.13926319]
[1722431230940,2.2050823,3326.4,3326.1,3.00652]
[1722431231229,2.20636631,3326.5,3326.2,0.13926319]
[1722431231608,2.20636631,3326.5,3326.2,3.00637]
[1722431231936,7.23619449,3327.1,3326.4,4.11525]
[1722431231937,2.20636631,3326.6,3326.4,4.11525]
[1722431232092,2.20636631,3326.7,3326.5,0.13912513]
[1722431232429,2.20636631,3326.8,3326.6,1.109]
[1722431232733,2.20636631,3326.8,3326.7,0.13892165]
[1722431234002,2.20636631,3327.0,3326.7,3.14490165]
[1722431234391,2.60627021,3327.3,3326.7,3.14490165]
[1722431234392,2.20707228,3327.1,3326.7,3.14490165]
[1722431235069,2.20707228,3327.0,3326.7,0.13892165]
[1722431237477,5.61255413,3327.3,3326.7,0.13892165]
[1722431237692,2.20708814,3327.0,3326.7,0.13892165]
[1722431237875,5.44999,3326.8,3326.7,0.13892165]
[1722431238185,5.44999,3326.8,3325.8,2.109]
[1722431238186,3.006,3326.7,3325.8,2.109]
[1722431238362,2.20742521,3326.4,3325.9,0.13405622]
[1722431238946,2.20742521,3326.2,3325.9,0.13405622]
[1722431239146,2.20742521,3326.3,3325.9,0.13405622]
[1722431239342,2.20742521,3326.2,3325.9,0.13405622]
[1722431239661,2.20742521,3326.3,3325.9,0.13405622]
[1722431240387,2.02562229,3326.6,3325.9,0.13405622]
[1722431240388,2.20742521,3326.2,3325.9,0.13405622]
[1722431240762,2.20758671,3326.1,3325.9,0.13405622]
[1722431241145,5.41519,3326.2,3325.9,0.13405622]
[1722431241146,2.20758671,3326.0,3325.9,0.13405622]
[1722431242578,3.00652,3326.1,3325.9,0.13405622]
[1722431242785,5.01639315,3326.2,3325.9,0.13405622]
[1722431243102,2.20754132,3326.0,3325.9,0.13405622]
[1722431243300,2.20754132,3326.1,3325.9,0.13405622]
[1722431244280,2.20776856,3326.0,3325.9,0.13405622]
[1722431244459,3.00645,3326.2,3325.9,0.13405622]
[1722431244668,2.20775264,3326.0,3325.9,0.13405622]
[1722431245362,2.20775264,3326.1,3325.9,0.13405622]
[1722431247298,3.0063,3326.4,3325.9,0.13405622]
[1722431247482,2.20751781,3326.1,3325.9,0.13405622]
[1722431248378,2.20751781,3326.1,3326.0,4.11561]
[1722431248580,2.20751781,3326.3,3326.0,1.23897402]
[1722431248806,2.20751781,3326.2,3326.0,1.23897402]
[1722431248987,3.00613,3326.6,3326.0,1.23897402]
[1722431248988,2.20751781,3326.4,3326.0,1.23897402]
[1722431249553,2.20751781,3326.3,3326.0,1.23897402]
[1722431250603,3.856697,3326.6,3326.0,1.23897402]
[1722431250804,2.20756716,3326.3,3326.0,1.23897402]
[1722431251593,2.20756716,3326.4,3326.0,1.23897402]
[1722431251966,2.20756716,3326.4,3326.0,0.12997402]
[1722431252164,2.20756716,3326.2,3326.0,0.12997402]
[1722431252370,2.20756716,3326.3,3326.0,0.12997402]
[1722431253397,2.20756716,3326.1,3326.0,0.12997402]
[1722431253702,2.20756716,3326.2,3326.0,0.12997402]
[1722431254005,2.20787843,3326.2,3326.0,0.12997402]
[1722431254811,2.20787843,3326.3,3326.0,0.12997402]
[1722431255812,2.20765243,3326.4,3326.2,3.00636]
[1722431256014,2.20765243,3326.5,3326.3,1.23892335]
[1722431256173,2.20765243,3326.6,3326.4,3.00625]
[1722431256371,2.20765243,3326.7,3326.5,0.12991611]
[1722431256689,2.20765243,3326.7,3326.4,3.00625]
[1722431256876,2.20765243,3326.8,3326.4,3.00625]
[1722431257075,2.3372,3327.1,3326.5,1.23891611]
[1722431257407,2.20754881,3326.8,3326.6,3.00602]
[1722431257612,2.60766703,3327.2,3326.6,3.00602]
[1722431257613,2.20754881,3326.9,3326.6,6.14181582]
[1722431257766,2.20754881,3326.8,3326.7,3.00597]
[1722431257967,2.20754881,3327.1,3326.8,3.00587]
[1722431258414,5.39406,3327.5,3326.8,3.00587]
[1722431258415,2.20754881,3327.2,3326.8,3.00587]
[1722431258615,2.20754881,3327.2,3326.9,0.12978582]
[1722431258830,2.20754881,3327.2,3326.9,4.24457582]
[1722431259112,2.20754881,3327.3,3327.0,3.00568]
[1722431259510,2.20754881,3327.3,3327.1,0.12955418]
[1722431259871,2.60766703,3327.4,3327.1,0.12955418]
[1722431260142,2.491,3327.2,3326.4,4.1152]
[1722431260312,2.20630947,3327.1,3326.6,6.01202]
[1722431260471,2.20628666,3327.1,3326.6,3.006]
[1722431260672,4.69728666,3327.2,3326.6,3.006]
[1722431260913,4.69728666,3327.2,3326.7,0.12955418]
[1722431261614,4.69728666,3327.2,3326.7,3.13548418]
[1722431263670,4.69648531,3327.2,3326.8,3.00589]
[1722431263899,2.20548531,3327.2,3326.8,3.00589]
[1722431264343,2.20548531,3327.2,3326.9,0.12955418]
[1722431265016,2.20548531,3327.0,3326.6,4.115]
[1722431265216,2.20548531,3327.1,3326.7,0.12955418]
[1722431265421,2.20548531,3327.2,3326.7,0.12955418]
[1722431267012,2.20536817,3327.2,3326.7,0.12955418]
[1722431268227,2.83734899,3327.2,3326.7,0.12955418]
[1722431268443,2.20536817,3327.0,3326.7,0.12955418]
[1722431268639,2.20536817,3326.9,3326.7,0.12955418]
[1722431268828,2.20536817,3326.9,3326.2,3.60639]
[1722431268829,5.2651,3326.9,3326.2,1.709]
[1722431269158,3.00616,3326.5,3326.2,0.6]
[1722431269353,5.21152817,3326.5,3326.2,0.6]
[1722431269704,3.00616,3326.5,3326.2,0.6]
[1722431269942,1.109,3326.6,3326.2,0.6]
[1722431269943,2.20608806,3326.3,3326.2,0.6]
[1722431270122,3.0063,3326.4,3326.2,0.6]
[1722431270340,0.30063,3326.3,3326.2,0.6]
[1722431271211,2.50672874,3326.3,3326.2,0.6]
[1722431272352,2.20609874,3326.4,3326.2,0.6]
[1722431272924,2.20609874,3326.4,3326.2,1.709]
[1722431273128,2.20609874,3326.6,3326.2,1.709]
[1722431273659,2.20609874,3326.4,3326.2,1.709]
[1722431273859,2.20609874,3326.5,3326.2,1.709]
[1722431274557,2.20609874,3326.6,3326.2,1.709]
[1722431275124,2.20609874,3326.5,3326.2,0.6]
[1722431276760,2.20652219,3326.5,3326.2,0.6]
[1722431279061,2.20652219,3326.4,3326.2,0.6]
[1722431279461,2.20652219,3326.4,3326.3,0.12961933]
[1722431279661,2.20652219,3326.5,3326.3,0.12961933]
[1722431280003,3.00598,3326.7,3326.3,0.12961933]
[1722431280155,2.20653625,3326.5,3326.3,0.12961933]
[1722431281171,2.20653625,3326.6,3326.3,0.12961933]
[1722431281377,2.20653625,3326.5,3326.3,0.12961933]
[1722431281763,5.61227094,3326.9,3326.3,0.12961933]
[1722431281764,2.20653625,3326.6,3326.3,0.12961933]
[1722431283108,2.20653625,3326.6,3326.3,3.13595933]
[1722431283262,2.20692701,3326.6,3326.3,3.13595933]
[1722431283626,2.20692706,3326.6,3326.4,1.109]
[1722431283761,2.20692706,3326.7,3326.5,0.1296881]
[1722431283967,2.20692706,3326.8,3326.5,0.1296881]
[1722431284311,2.20692706,3327.0,3326.6,4.11499]
[1722431284612,7.41,3327.1,3326.7,0.12968448]
[1722431284613,9.61692706,3327.1,3326.7,0.12968448]
[1722431285118,2.20692706,3327.1,3326.7,0.12968448]
[1722431285316,2.20692706,3327.1,3326.8,4.11488]
[1722431285513,2.20692706,3327.2,3326.7,0.55415193]
[1722431285714,2.20692706,3327.2,3326.9,0.12966277]
[1722431285873,2.20692706,3327.1,3326.9,0.12966277]
[1722431286067,2.20692706,3327.2,3326.7,3.00593]
[1722431286286,2.20692706,3327.2,3327.0,0.12966277]
[1722431286511,2.2063713,3327.2,3326.8,3.00587]
[1722431286721,1.89114957,3326.9,3326.8,3.00587]
[1722431287089,1.89102176,3326.9,3326.8,3.00587]
[1722431288201,1.89102176,3327.0,3326.9,3.0058]
[1722431288577,2.2063713,3327.3,3326.9,3.0058]
[1722431288789,1.89093011,3327.0,3326.9,3.00574]
[1722431288979,6.00503,3327.8,3327.1,6.01124]
[1722431288980,1.89093011,3327.2,3327.1,6.01124]
[1722431289180,2.2063713,3327.6,3327.3,3.00538]
[1722431289433,1.89072582,3327.4,3327.3,3.00538]
[1722431289600,2.4521,3328.0,3327.3,3.00538]
[1722431289786,1.89030687,3327.5,3327.3,3.00538]
[1722431290121,1.89030687,3327.5,3327.3,3.7885704]
[1722431290333,1.89030687,3327.4,3327.3,3.7885704]
[1722431290531,1.89030687,3327.5,3327.4,3.00534]
[1722431290680,1.89030687,3327.5,3327.3,3.7886104]
[1722431290877,1.89030687,3327.5,3327.4,3.00534]
[1722431291281,2.20535802,3327.8,3327.4,3.00534]
[1722431291480,1.88982787,3327.5,3327.4,3.00534]
[1722431292001,2.20535802,3327.7,3327.3,3.00543]
[1722431292183,1.88984508,3327.4,3327.3,3.00543]
[1722431293126,1.889701,3327.4,3327.3,3.00543]
[1722431293335,1.889701,3327.5,3327.3,3.00543]
[1722431294123,2.20465117,3327.6,3327.2,4.11452]
[1722431294324,1.88972398,3327.4,3327.2,4.11452]
[1722431294630,1.88972398,3327.4,3327.2,4.11446]
[1722431294835,1.88972398,3327.4,3327.3,0.1293118]
[1722431295127,1.88972398,3327.4,3327.2,7.11992]
[1722431295338,1.88972398,3327.4,3327.3,3.1347418]
[1722431295547,1.88972398,3327.5,3327.4,3.00534]
[1722431295754,1.88972398,3327.6,3327.5,3.00525]
[1722431295910,1.88972398,3327.6,3327.4,1.109]
[1722431296086,1.88972398,3327.6,3327.5,0.1293118]
[1722431296294,2.20465117,3327.8,3327.5,0.1293118]
[1722431296812,2.20465117,3327.8,3327.6,0.1293118]
[1722431297017,2.20465117,3327.8,3327.3,3.00542]
[1722431297219,1.88927233,3327.4,3327.3,3.00542]
[1722431297418,1.88927233,3327.5,3327.3,3.717421]
[1722431297629,1.88927233,3327.5,3327.3,3.00542]
[1722431298041,1.88927233,3327.5,3327.1,3.00559]
[1722431298243,1.88927233,3327.4,3327.0,1.109]
[1722431298593,1.88927233,3327.4,3326.9,3.00574]
[1722431298594,1.88927233,3327.3,3326.8,1.109]
[1722431298812,1.88927233,3327.3,3326.6,4.11502]
[1722431298813,1.88927233,3327.1,3326.6,4.11502]
[1722431299009,1.88927233,3327.1,3326.4,3.00622]
[1722431299010,1.88927233,3327.0,3326.5,3.00611]
[1722431299224,1.88927233,3326.9,3326.4,4.11524]
[1722431299408,5.30274,3327.3,3326.5,3.00615]
[1722431299745,5.30274,3327.3,3326.4,1.109]
[1722431299746,1.8896314,3326.9,3326.4,1.109]
[1722431300127,1.8896314,3326.9,3326.5,3.0061]
[1722431300622,1.8896314,3326.8,3326.5,3.0061]